[Event "Titled Tuesday Blitz January 18 2022"]
[White "Wagner, Dennis"]
[Black "Shirazi, Kamran"]
[WhiteFideId "24650684"]
[BlackFideId "2000733"]
[WhiteElo "2355"]
[BlackElo "2317"]
[Result "1-0"]
[Round "04"]
[TimeControl "180+1"]
[Date "2022.01.18"]
[WhiteClock "0:00:09"]
[BlackClock "0:00:15"]

1. c4 {[%clk 0:03:00]}  d5 {[%clk 0:03:00]} 2. cxd5 {[%clk 0:03:00]}  c6 {[%clk 0:03:00]} 3. Nc3 {[%clk 0:02:56]}  cxd5 {[%clk 0:03:00]} 4. d4 {[%clk 0:02:57]}  Nc6 {[%clk 0:02:58]} 5. Nf3 {[%clk 0:02:57]}  Bg4 {[%clk 0:02:57]} 6. Qb3 {[%clk 0:02:28]}  Bxf3 {[%clk 0:02:53]} 7. exf3 {[%clk 0:02:04]}  Nxd4 {[%clk 0:02:30]} 8. Qxb7 {[%clk 0:02:01]}  f6 {[%clk 0:02:23]} 9. Qxd5 {[%clk 0:01:18]}  Qxd5 {[%clk 0:02:20]} 10. Nxd5 {[%clk 0:01:19]}  Rc8 {[%clk 0:01:54]} 11. Ne3 {[%clk 0:01:10]}  e6 {[%clk 0:01:44]} 12. Bd2 {[%clk 0:01:04]}  Ne7 {[%clk 0:01:33]} 13. Bc3 {[%clk 0:00:58]}  Nef5 {[%clk 0:01:23]} 14. Nxf5 {[%clk 0:00:52]}  Nxf5 {[%clk 0:01:10]} 15. Ba6 {[%clk 0:00:51]}  Rc7 {[%clk 0:01:07]} 16. O-O {[%clk 0:00:50]}  Bc5 {[%clk 0:01:05]} 17. Rfe1 {[%clk 0:00:49]}  Kf7 {[%clk 0:01:05]} 18. Rad1 {[%clk 0:00:46]}  Rb8 {[%clk 0:00:58]} 19. Kf1 {[%clk 0:00:41]}  Bb4 {[%clk 0:00:53]} 20. Bxb4 {[%clk 0:00:33]}  Rxb4 {[%clk 0:00:52]} 21. b3 {[%clk 0:00:34]}  e5 {[%clk 0:00:43]} 22. Bc4+ {[%clk 0:00:32]}  Ke7 {[%clk 0:00:43]} 23. Rd2 {[%clk 0:00:23]}  a5 {[%clk 0:00:43]} 24. g3 {[%clk 0:00:20]}  a4 {[%clk 0:00:42]} 25. f4 {[%clk 0:00:20]}  Rc5 {[%clk 0:00:39]} 26. Bd5 {[%clk 0:00:15]}  Rd4 {[%clk 0:00:31]} 27. Rxd4 {[%clk 0:00:12]}  Nxd4 {[%clk 0:00:31]} 28. Bc4 {[%clk 0:00:13]}  Kd6 {[%clk 0:00:27]} 29. fxe5+ {[%clk 0:00:13]}  fxe5 {[%clk 0:00:28]} 30. Rd1 {[%clk 0:00:13]}  a3 {[%clk 0:00:25]} 31. f4 {[%clk 0:00:13]}  Kc6 {[%clk 0:00:23]} 32. fxe5 {[%clk 0:00:12]}  Nc2 {[%clk 0:00:24]} 33. Rd6+ {[%clk 0:00:12]}  Kc7 {[%clk 0:00:24]} 34. Re6 {[%clk 0:00:10]}  Ne3+ {[%clk 0:00:23]} 35. Ke2 {[%clk 0:00:11]}  Nxc4 {[%clk 0:00:24]} 36. bxc4 {[%clk 0:00:11]}  Rxc4 {[%clk 0:00:25]} 37. Kd3 {[%clk 0:00:11]}  Rb4 {[%clk 0:00:25]} 38. Re7+ {[%clk 0:00:10]}  Kb6 {[%clk 0:00:26]} 39. Rxg7 {[%clk 0:00:09]}  Rb2 {[%clk 0:00:26]} 40. Rxh7 {[%clk 0:00:10]}  Rxa2 {[%clk 0:00:26]} 41. Kc3 {[%clk 0:00:10]}  Re2 {[%clk 0:00:26]} 42. Rh8 {[%clk 0:00:09]}  Kb7 {[%clk 0:00:26]} 43. Rh4 {[%clk 0:00:07]}  Rxe5 {[%clk 0:00:23]} 44. Ra4 {[%clk 0:00:07]}  Re2 {[%clk 0:00:19]} 45. Rxa3 {[%clk 0:00:06]}  Rxh2 {[%clk 0:00:19]} 46. Kd4 {[%clk 0:00:06]}  Kc6 {[%clk 0:00:20]} 47. Ke5 {[%clk 0:00:06]}  Kd7 {[%clk 0:00:21]} 48. Kf6 {[%clk 0:00:06]}  Ke8 {[%clk 0:00:20]} 49. Kg7 {[%clk 0:00:06]}  Rg2 {[%clk 0:00:19]} 50. Re3+ {[%clk 0:00:06]}  Kd7 {[%clk 0:00:19]} 51. Kg6 {[%clk 0:00:07]}  Kd6 {[%clk 0:00:19]} 52. Kg5 {[%clk 0:00:07]}  Kd5 {[%clk 0:00:19]} 53. g4 {[%clk 0:00:08]}  Kd4 {[%clk 0:00:20]} 54. Re1 {[%clk 0:00:08]}  Kd5 {[%clk 0:00:20]} 55. Kf5 {[%clk 0:00:08]}  Rf2+ {[%clk 0:00:20]} 56. Kg6 {[%clk 0:00:08]}  Rf8 {[%clk 0:00:19]} 57. g5 {[%clk 0:00:09]}  Kd6 {[%clk 0:00:20]} 58. Kg7 {[%clk 0:00:09]}  Rf4 {[%clk 0:00:20]} 59. g6 {[%clk 0:00:09]}  Kd7 {[%clk 0:00:21]} 60. Kg8 {[%clk 0:00:09]}  Rf6 {[%clk 0:00:19]} 61. g7 {[%clk 0:00:09]}  Rf3 {[%clk 0:00:20]} 62. Re4 {[%clk 0:00:08]}  Rf2 {[%clk 0:00:19]} 63. Kh7 {[%clk 0:00:09]}  Rh2+ {[%clk 0:00:18]} 64. Kg6 {[%clk 0:00:09]}  Rg2+ {[%clk 0:00:19]} 65. Kf6 {[%clk 0:00:10]}  Rf2+ {[%clk 0:00:19]} 66. Kg5 {[%clk 0:00:10]}  Rf4 {[%clk 0:00:15]} 67. Rxf4 {[%clk 0:00:09]} 1-0


[Site "https://www.chess.com"]

[Event "Titled Tuesday Blitz January 18 2022"]
[White "Weetik, Vjacheslav"]
[Black "Gontcharov, Vladislav"]
[WhiteFideId "4153472"]
[BlackFideId "4123492"]
[WhiteElo "2469"]
[BlackElo "2503"]
[Result "1-0"]
[Round "04"]
[TimeControl "180+1"]
[Date "2022.01.18"]
[WhiteClock "0:00:04"]
[BlackClock "0:00:07"]

1. d4 {[%clk 0:02:59]}  Nf6 {[%clk 0:02:59]} 2. Bf4 {[%clk 0:02:56]}  d6 {[%clk 0:02:56]} 3. Nf3 {[%clk 0:02:56]}  c5 {[%clk 0:02:52]} 4. dxc5 {[%clk 0:02:49]}  Qa5+ {[%clk 0:02:51]} 5. Nc3 {[%clk 0:02:49]}  Qxc5 {[%clk 0:02:43]} 6. e4 {[%clk 0:02:49]}  Nc6 {[%clk 0:02:37]} 7. h3 {[%clk 0:02:29]}  h6 {[%clk 0:02:21]} 8. Be2 {[%clk 0:02:08]}  a6 {[%clk 0:02:19]} 9. O-O {[%clk 0:02:01]}  e5 {[%clk 0:02:18]} 10. Be3 {[%clk 0:02:00]}  Qa5 {[%clk 0:02:18]} 11. Nd2 {[%clk 0:02:00]}  Nd4 {[%clk 0:01:52]} 12. Bxd4 {[%clk 0:01:52]}  exd4 {[%clk 0:01:51]} 13. Nb3 {[%clk 0:01:53]}  Qb4 {[%clk 0:01:49]} 14. Qxd4 {[%clk 0:01:49]}  Qxd4 {[%clk 0:01:48]} 15. Nxd4 {[%clk 0:01:50]}  Be7 {[%clk 0:01:48]} 16. Bc4 {[%clk 0:01:42]}  O-O {[%clk 0:01:47]} 17. Nd5 {[%clk 0:01:42]}  Nxd5 {[%clk 0:01:46]} 18. Bxd5 {[%clk 0:01:43]}  Rb8 {[%clk 0:01:46]} 19. a4 {[%clk 0:01:39]}  Bf6 {[%clk 0:01:45]} 20. c3 {[%clk 0:01:32]}  Re8 {[%clk 0:01:45]} 21. Rfd1 {[%clk 0:01:31]}  Kf8 {[%clk 0:01:40]} 22. a5 {[%clk 0:01:27]}  Be6 {[%clk 0:01:38]} 23. Bxe6 {[%clk 0:00:34]}  fxe6 {[%clk 0:01:37]} 24. Rd2 {[%clk 0:00:29]}  Ke7 {[%clk 0:01:35]} 25. Ra4 {[%clk 0:00:27]}  Rbc8 {[%clk 0:01:30]} 26. Rb4 {[%clk 0:00:26]}  Rc7 {[%clk 0:01:30]} 27. g3 {[%clk 0:00:26]}  Rd8 {[%clk 0:01:27]} 28. Kg2 {[%clk 0:00:26]}  Rdd7 {[%clk 0:01:28]} 29. Nc2 {[%clk 0:00:24]}  Rc5 {[%clk 0:01:22]} 30. Ra4 {[%clk 0:00:24]}  Rb5 {[%clk 0:01:14]} 31. Ne3 {[%clk 0:00:22]}  d5 {[%clk 0:01:03]} 32. exd5 {[%clk 0:00:22]}  exd5 {[%clk 0:01:03]} 33. Nf5+ {[%clk 0:00:18]}  Ke6 {[%clk 0:01:01]} 34. Nd4+ {[%clk 0:00:18]}  Bxd4 {[%clk 0:01:01]} 35. Rdxd4 {[%clk 0:00:18]}  Rc7 {[%clk 0:01:00]} 36. Rdb4 {[%clk 0:00:14]}  Rcc5 {[%clk 0:00:49]} 37. Kf3 {[%clk 0:00:13]}  Rxb4 {[%clk 0:00:47]} 38. Rxb4 {[%clk 0:00:13]}  Rxa5 {[%clk 0:00:45]} 39. Rxb7 {[%clk 0:00:13]}  Ra2 {[%clk 0:00:45]} 40. Ke3 {[%clk 0:00:12]}  a5 {[%clk 0:00:38]} 41. Rb6+ {[%clk 0:00:10]}  Kf7 {[%clk 0:00:36]} 42. Kd4 {[%clk 0:00:09]}  a4 {[%clk 0:00:36]} 43. Kxd5 {[%clk 0:00:08]}  a3 {[%clk 0:00:36]} 44. bxa3 {[%clk 0:00:09]}  Rxa3 {[%clk 0:00:36]} 45. c4 {[%clk 0:00:06]}  Rd3+ {[%clk 0:00:33]} 46. Ke4 {[%clk 0:00:05]}  Rc3 {[%clk 0:00:32]} 47. Rc6 {[%clk 0:00:05]}  Rc2 {[%clk 0:00:31]} 48. f3 {[%clk 0:00:05]}  Ke7 {[%clk 0:00:31]} 49. h4 {[%clk 0:00:05]}  Kd7 {[%clk 0:00:30]} 50. Rg6 {[%clk 0:00:05]}  Ke8 {[%clk 0:00:29]} 51. Rxg7 {[%clk 0:00:05]}  Rxc4+ {[%clk 0:00:28]} 52. Kf5 {[%clk 0:00:06]}  Kf8 {[%clk 0:00:25]} 53. Rg6 {[%clk 0:00:05]}  Rc5+ {[%clk 0:00:23]} 54. Kf4 {[%clk 0:00:05]}  Rc4+ {[%clk 0:00:15]} 55. Kf5 {[%clk 0:00:05]}  Rc3 {[%clk 0:00:13]} 56. Kg4 {[%clk 0:00:04]}  Rc4+ {[%clk 0:00:10]} 57. f4 {[%clk 0:00:05]}  Rc6 {[%clk 0:00:07]} 58. Rxc6 {[%clk 0:00:04]} 1-0


[Site "https://www.chess.com"]

[Event "Titled Tuesday Blitz January 18 2022"]
[White "Yoo, Christopher Woojin"]
[Black "Punin, Andrii"]
[WhiteFideId "30909694"]
[BlackFideId "14112639"]
[WhiteElo "2105"]
[BlackElo "2357"]
[Result "1-0"]
[Round "04"]
[TimeControl "180+1"]
[Date "2022.01.18"]
[WhiteClock "0:00:19"]
[BlackClock "0:00:08"]

1. e4 {[%clk 0:03:00]}  c6 {[%clk 0:02:59]} 2. Nf3 {[%clk 0:03:00]}  d5 {[%clk 0:02:57]} 3. d3 {[%clk 0:03:00]}  Qc7 {[%clk 0:02:56]} 4. e5 {[%clk 0:02:57]}  Bg4 {[%clk 0:02:50]} 5. d4 {[%clk 0:02:56]}  e6 {[%clk 0:02:50]} 6. c3 {[%clk 0:02:49]}  Nd7 {[%clk 0:02:46]} 7. Nbd2 {[%clk 0:02:49]}  h6 {[%clk 0:02:46]} 8. Bd3 {[%clk 0:02:48]}  Ne7 {[%clk 0:02:45]} 9. h3 {[%clk 0:02:45]}  Bf5 {[%clk 0:02:45]} 10. Qe2 {[%clk 0:02:45]}  Bxd3 {[%clk 0:02:44]} 11. Qxd3 {[%clk 0:02:44]}  c5 {[%clk 0:02:41]} 12. O-O {[%clk 0:02:44]}  Nc6 {[%clk 0:02:40]} 13. b3 {[%clk 0:02:34]}  Be7 {[%clk 0:02:38]} 14. Bb2 {[%clk 0:02:33]}  O-O {[%clk 0:02:37]} 15. Rac1 {[%clk 0:02:33]}  cxd4 {[%clk 0:02:25]} 16. cxd4 {[%clk 0:02:31]}  Qb6 {[%clk 0:02:24]} 17. a3 {[%clk 0:02:27]}  Rac8 {[%clk 0:02:22]} 18. b4 {[%clk 0:02:23]}  a5 {[%clk 0:02:21]} 19. b5 {[%clk 0:02:21]}  Na7 {[%clk 0:02:21]} 20. a4 {[%clk 0:02:20]}  Rxc1 {[%clk 0:02:20]} 21. Rxc1 {[%clk 0:02:20]}  Rc8 {[%clk 0:02:20]} 22. Rc2 {[%clk 0:02:11]}  Rxc2 {[%clk 0:02:16]} 23. Qxc2 {[%clk 0:02:11]}  Qd8 {[%clk 0:02:14]} 24. Nb3 {[%clk 0:02:08]}  b6 {[%clk 0:02:11]} 25. Nfd2 {[%clk 0:01:42]}  Bb4 {[%clk 0:02:09]} 26. Nf1 {[%clk 0:01:17]}  Qc8 {[%clk 0:02:08]} 27. Qxc8+ {[%clk 0:01:15]}  Nxc8 {[%clk 0:02:07]} 28. Ne3 {[%clk 0:01:15]}  h5 {[%clk 0:01:58]} 29. g4 {[%clk 0:01:14]}  hxg4 {[%clk 0:01:58]} 30. hxg4 {[%clk 0:01:14]}  Be7 {[%clk 0:01:43]} 31. f4 {[%clk 0:01:13]}  Bd8 {[%clk 0:01:41]} 32. Kf2 {[%clk 0:01:08]}  Ne7 {[%clk 0:01:40]} 33. f5 {[%clk 0:01:07]}  g6 {[%clk 0:01:37]} 34. f6 {[%clk 0:01:03]}  Nc8 {[%clk 0:01:32]} 35. g5 {[%clk 0:01:04]}  Nf8 {[%clk 0:01:29]} 36. Nd2 {[%clk 0:00:57]}  Nd7 {[%clk 0:01:17]} 37. Ng4 {[%clk 0:00:55]}  Kf8 {[%clk 0:01:16]} 38. Ba3+ {[%clk 0:00:45]}  Ke8 {[%clk 0:01:13]} 39. Nf1 {[%clk 0:00:44]}  Bc7 {[%clk 0:01:07]} 40. Ng3 {[%clk 0:00:43]}  Bb8 {[%clk 0:01:01]} 41. Ne2 {[%clk 0:00:42]}  Bc7 {[%clk 0:01:00]} 42. Nf4 {[%clk 0:00:42]}  Nf8 {[%clk 0:00:50]} 43. Kg3 {[%clk 0:00:41]}  Bb8 {[%clk 0:00:49]} 44. Nh6 {[%clk 0:00:35]}  Bc7 {[%clk 0:00:47]} 45. Nxf7 {[%clk 0:00:32]}  Kxf7 {[%clk 0:00:39]} 46. Bxf8 {[%clk 0:00:32]}  Bd8 {[%clk 0:00:25]} 47. Bd6 {[%clk 0:00:30]}  Na7 {[%clk 0:00:17]} 48. Bb8 {[%clk 0:00:24]}  Nc8 {[%clk 0:00:17]} 49. Kg4 {[%clk 0:00:23]}  Be7 {[%clk 0:00:08]} 50. fxe7 {[%clk 0:00:19]}  Nxe7 {[%clk 0:00:09]} 51. Bc7 {[%clk 0:00:19]}  Nc8 {[%clk 0:00:08]} 52. Kf3 {[%clk 0:00:19]} 1-0


[Site "https://www.chess.com"]

[Event "Titled Tuesday Blitz January 18 2022"]
[White "Aditya Mittal"]
[Black "Balabayeva, Xeniya"]
[WhiteFideId "35042025"]
[BlackFideId "13719688"]
[WhiteElo "2287"]
[BlackElo "1940"]
[Result "1-0"]
[Round "05"]
[TimeControl "180+1"]
[Date "2022.01.18"]
[WhiteClock "0:01:14"]
[BlackClock "0:00:01"]

1. d4 {[%clk 0:03:00]}  d5 {[%clk 0:02:56]} 2. c4 {[%clk 0:03:01]}  e6 {[%clk 0:02:56]} 3. Nc3 {[%clk 0:02:58]}  h6 {[%clk 0:02:54]} 4. cxd5 {[%clk 0:02:56]}  exd5 {[%clk 0:02:51]} 5. Nf3 {[%clk 0:02:57]}  Nf6 {[%clk 0:02:50]} 6. Bf4 {[%clk 0:02:55]}  Bd6 {[%clk 0:02:48]} 7. Bxd6 {[%clk 0:02:54]}  Qxd6 {[%clk 0:02:46]} 8. e3 {[%clk 0:02:55]}  c6 {[%clk 0:02:45]} 9. Bd3 {[%clk 0:02:55]}  Bg4 {[%clk 0:02:41]} 10. h3 {[%clk 0:02:54]}  Bxf3 {[%clk 0:02:39]} 11. Qxf3 {[%clk 0:02:54]}  Nbd7 {[%clk 0:02:39]} 12. O-O {[%clk 0:02:53]}  O-O {[%clk 0:02:37]} 13. Rab1 {[%clk 0:02:52]}  a6 {[%clk 0:02:27]} 14. b4 {[%clk 0:02:50]}  b5 {[%clk 0:02:26]} 15. a4 {[%clk 0:02:38]}  Rfe8 {[%clk 0:02:16]} 16. a5 {[%clk 0:02:36]}  Re7 {[%clk 0:02:10]} 17. Rfc1 {[%clk 0:02:24]}  Rae8 {[%clk 0:01:59]} 18. Ne2 {[%clk 0:02:24]}  Nf8 {[%clk 0:01:41]} 19. Ng3 {[%clk 0:02:19]}  g6 {[%clk 0:01:33]} 20. Qf4 {[%clk 0:02:09]}  Re6 {[%clk 0:01:21]} 21. Qxh6 {[%clk 0:01:58]}  Ne4 {[%clk 0:00:58]} 22. Bxe4 {[%clk 0:01:45]}  dxe4 {[%clk 0:00:56]} 23. Rc5 {[%clk 0:01:42]}  Nh7 {[%clk 0:00:36]} 24. Nxe4 {[%clk 0:01:22]}  Rxe4 {[%clk 0:00:29]} 25. Rh5 {[%clk 0:01:22]}  Qf6 {[%clk 0:00:20]} 26. Qxh7+ {[%clk 0:01:21]}  Kf8 {[%clk 0:00:20]} 27. Qh8+ {[%clk 0:01:15]}  Qxh8 {[%clk 0:00:20]} 28. Rxh8+ {[%clk 0:01:16]}  Ke7 {[%clk 0:00:20]} 29. Rxe8+ {[%clk 0:01:17]}  Kxe8 {[%clk 0:00:21]} 30. Rc1 {[%clk 0:01:16]}  Kd7 {[%clk 0:00:02]} 31. Rc5 {[%clk 0:01:17]}  Re6 {[%clk 0:00:02]} 32. Kf1 {[%clk 0:01:15]}  Rd6 {[%clk 0:00:02]} 33. Ke2 {[%clk 0:01:14]}  Re6 {[%clk 0:00:01]} 34. Kf3 {[%clk 0:01:14]} 1-0


[Site "https://www.chess.com"]

[Event "Titled Tuesday Blitz January 18 2022"]
[White "Andreikin, Dmitry"]
[Black "Kahlert, Thomas"]
[WhiteFideId "4158814"]
[BlackFideId "4625242"]
[WhiteElo "2736"]
[BlackElo "2228"]
[Result "1-0"]
[Round "05"]
[TimeControl "180+1"]
[Date "2022.01.18"]
[WhiteClock "0:02:31"]
[BlackClock "0:01:59"]

1. d4 {[%clk 0:03:00]}  Nf6 {[%clk 0:02:59]} 2. c4 {[%clk 0:03:01]}  g6 {[%clk 0:02:58]} 3. Nc3 {[%clk 0:03:01]}  d5 {[%clk 0:02:58]} 4. cxd5 {[%clk 0:03:01]}  Nxd5 {[%clk 0:02:58]} 5. e4 {[%clk 0:03:01]}  Nxc3 {[%clk 0:02:58]} 6. bxc3 {[%clk 0:03:02]}  Bg7 {[%clk 0:02:58]} 7. Nf3 {[%clk 0:03:02]}  c5 {[%clk 0:02:58]} 8. Be2 {[%clk 0:03:03]}  Bg4 {[%clk 0:02:55]} 9. Rb1 {[%clk 0:02:59]}  cxd4 {[%clk 0:02:41]} 10. cxd4 {[%clk 0:02:58]}  Bxf3 {[%clk 0:02:41]} 11. Bxf3 {[%clk 0:02:58]}  Qxd4 {[%clk 0:02:41]} 12. O-O {[%clk 0:02:54]}  Qxd1 {[%clk 0:02:37]} 13. Rxd1 {[%clk 0:02:55]}  Nc6 {[%clk 0:02:36]} 14. Rxb7 {[%clk 0:02:54]}  Nd4 {[%clk 0:02:35]} 15. Be3 {[%clk 0:02:36]}  O-O-O {[%clk 0:02:24]} 16. Rdb1 {[%clk 0:02:32]}  Nxf3+ {[%clk 0:02:04]} 17. gxf3 {[%clk 0:02:31]}  Rd1+ {[%clk 0:02:04]} 18. Rxd1 {[%clk 0:02:31]}  Kxb7 {[%clk 0:02:04]} 19. Rd7+ {[%clk 0:02:31]}  Kc6 {[%clk 0:01:59]} 20. Rxe7 {[%clk 0:02:31]} 1-0


[Site "https://www.chess.com"]

[Event "Titled Tuesday Blitz January 18 2022"]
[White "Cherniaiev, Tykhon"]
[Black "Plotkin, Mark"]
[WhiteFideId "14182360"]
[BlackFideId "2611651"]
[WhiteElo "2289"]
[BlackElo "2178"]
[Result "0-1"]
[Round "05"]
[TimeControl "180+1"]
[Date "2022.01.18"]
[WhiteClock "0:00:08"]
[BlackClock "0:00:38"]

1. Nf3 {[%clk 0:03:00]}  Nf6 {[%clk 0:02:45]} 2. c4 {[%clk 0:03:00]}  c6 {[%clk 0:02:44]} 3. b3 {[%clk 0:02:59]}  d5 {[%clk 0:02:45]} 4. Bb2 {[%clk 0:02:59]}  Bf5 {[%clk 0:02:42]} 5. g3 {[%clk 0:02:59]}  h6 {[%clk 0:02:42]} 6. Bg2 {[%clk 0:02:59]}  e6 {[%clk 0:02:38]} 7. O-O {[%clk 0:02:59]}  Nbd7 {[%clk 0:02:34]} 8. Nc3 {[%clk 0:02:59]}  Be7 {[%clk 0:02:28]} 9. Re1 {[%clk 0:02:58]}  O-O {[%clk 0:02:25]} 10. d4 {[%clk 0:02:57]}  Ne4 {[%clk 0:02:23]} 11. Nxe4 {[%clk 0:02:57]}  Bxe4 {[%clk 0:02:24]} 12. Nd2 {[%clk 0:02:57]}  Bxg2 {[%clk 0:02:23]} 13. Kxg2 {[%clk 0:02:57]}  f5 {[%clk 0:02:24]} 14. f3 {[%clk 0:02:55]}  Nf6 {[%clk 0:02:22]} 15. e4 {[%clk 0:02:52]}  fxe4 {[%clk 0:02:23]} 16. fxe4 {[%clk 0:02:52]}  Bb4 {[%clk 0:02:23]} 17. exd5 {[%clk 0:02:31]}  exd5 {[%clk 0:02:20]} 18. Rf1 {[%clk 0:02:25]}  Qe7 {[%clk 0:01:57]} 19. a3 {[%clk 0:02:14]}  Bxd2 {[%clk 0:01:56]} 20. Qxd2 {[%clk 0:02:15]}  Qe4+ {[%clk 0:01:50]} 21. Kg1 {[%clk 0:02:14]}  Ng4 {[%clk 0:01:50]} 22. Rfe1 {[%clk 0:01:50]}  Qf3 {[%clk 0:01:50]} 23. Qe2 {[%clk 0:01:36]}  Qf2+ {[%clk 0:01:32]} 24. Qxf2 {[%clk 0:01:34]}  Rxf2 {[%clk 0:01:33]} 25. Bc1 {[%clk 0:01:20]}  Rxh2 {[%clk 0:01:33]} 26. Re7 {[%clk 0:01:19]}  Rf8 {[%clk 0:01:27]} 27. Bf4 {[%clk 0:01:19]}  g5 {[%clk 0:01:26]} 28. Be5 {[%clk 0:01:02]}  Rff2 {[%clk 0:01:24]} 29. Re1 {[%clk 0:00:43]}  Rfg2+ {[%clk 0:01:16]} 30. Kf1 {[%clk 0:00:42]}  Rb2 {[%clk 0:01:06]} 31. Kg1 {[%clk 0:00:42]}  Rhg2+ {[%clk 0:01:07]} 32. Kh1 {[%clk 0:00:41]}  Rgc2 {[%clk 0:00:56]} 33. Kg1 {[%clk 0:00:31]}  Nh2 {[%clk 0:00:38]} 34. g4 {[%clk 0:00:07]}  Nf3+ {[%clk 0:00:37]} 35. Kh1 {[%clk 0:00:08]}  Rh2+ {[%clk 0:00:37]} 36. Bxh2 {[%clk 0:00:08]}  Rxh2# {[%clk 0:00:38]} 0-1


[Site "https://www.chess.com"]

[Event "Titled Tuesday Blitz January 18 2022"]
[White "Chernobay, Artem"]
[Black "Punin, Andrii"]
[WhiteFideId "4167406"]
[BlackFideId "14112639"]
[WhiteElo "2473"]
[BlackElo "2357"]
[Result "1-0"]
[Round "05"]
[TimeControl "180+1"]
[Date "2022.01.18"]
[WhiteClock "0:00:07"]
[BlackClock "0:00:01"]

1. d4 {[%clk 0:03:00]}  Nf6 {[%clk 0:02:58]} 2. c4 {[%clk 0:03:00]}  e6 {[%clk 0:02:58]} 3. Nf3 {[%clk 0:02:59]}  d5 {[%clk 0:02:56]} 4. g3 {[%clk 0:02:59]}  dxc4 {[%clk 0:02:52]} 5. Bg2 {[%clk 0:02:59]}  c6 {[%clk 0:02:52]} 6. O-O {[%clk 0:02:58]}  b5 {[%clk 0:02:52]} 7. a4 {[%clk 0:02:41]}  Bb7 {[%clk 0:02:50]} 8. Ne5 {[%clk 0:02:39]}  a6 {[%clk 0:02:49]} 9. Bg5 {[%clk 0:01:59]}  Be7 {[%clk 0:02:49]} 10. Nc3 {[%clk 0:01:51]}  O-O {[%clk 0:02:48]} 11. e3 {[%clk 0:01:42]}  Nfd7 {[%clk 0:02:30]} 12. Bxe7 {[%clk 0:01:35]}  Qxe7 {[%clk 0:02:31]} 13. axb5 {[%clk 0:01:33]}  axb5 {[%clk 0:02:16]} 14. Rxa8 {[%clk 0:01:33]}  Bxa8 {[%clk 0:02:17]} 15. b3 {[%clk 0:01:33]}  Nxe5 {[%clk 0:02:07]} 16. dxe5 {[%clk 0:01:33]}  cxb3 {[%clk 0:01:56]} 17. Qxb3 {[%clk 0:01:31]}  Nd7 {[%clk 0:01:53]} 18. f4 {[%clk 0:01:25]}  Nb6 {[%clk 0:01:44]} 19. Ne4 {[%clk 0:01:23]}  Nc4 {[%clk 0:01:36]} 20. Ra1 {[%clk 0:01:22]}  Qc7 {[%clk 0:01:17]} 21. Nc5 {[%clk 0:01:13]}  Rd8 {[%clk 0:01:01]} 22. Ra6 {[%clk 0:00:57]}  Bb7 {[%clk 0:00:47]} 23. Ra7 {[%clk 0:00:53]}  Qb6 {[%clk 0:00:45]} 24. Nxb7 {[%clk 0:00:53]}  Qxa7 {[%clk 0:00:44]} 25. Nxd8 {[%clk 0:00:53]}  Qa1+ {[%clk 0:00:35]} 26. Kf2 {[%clk 0:00:52]}  h5 {[%clk 0:00:15]} 27. Bxc6 {[%clk 0:00:41]}  Qc1 {[%clk 0:00:16]} 28. Qd3 {[%clk 0:00:22]}  Qb2+ {[%clk 0:00:15]} 29. Qe2 {[%clk 0:00:22]}  Qb4 {[%clk 0:00:13]} 30. Be8 {[%clk 0:00:15]}  f5 {[%clk 0:00:08]} 31. exf6 {[%clk 0:00:12]}  gxf6 {[%clk 0:00:07]} 32. Nxe6 {[%clk 0:00:11]}  Qe7 {[%clk 0:00:07]} 33. Bxb5 {[%clk 0:00:10]}  Nd6 {[%clk 0:00:05]} 34. Nd4 {[%clk 0:00:10]}  h4 {[%clk 0:00:04]} 35. Kg2 {[%clk 0:00:08]}  Qe4+ {[%clk 0:00:03]} 36. Qf3 {[%clk 0:00:08]}  Qb1 {[%clk 0:00:02]} 37. Qd5+ {[%clk 0:00:07]}  Nf7 {[%clk 0:00:01]} 38. Bc4 {[%clk 0:00:07]} 1-0


[Site "https://www.chess.com"]